bitfinex-derivatives/quotes_SOLF0:USTF0_20260117
["timestamp","ask_amount","ask_price","bid_price","bid_amount"]
[1768625570046,3.92470056,144.36,144.3,0.05098731]
[1768625570242,3.92470056,144.36,144.3,3.84830529]
[1768625570441,3.92470056,144.36,144.3,10.08790529]
[1768625581353,3.92470056,144.36,144.31,3.76095607]
[1768625583056,3.92470056,144.36,144.31,10.00025607]
[1768625584155,3.86861644,144.38,144.32,3.76095607]
[1768625585150,5.5910076,144.38,144.34,0.04770525]
[1768625596272,3.86861644,144.38,144.34,0.04770525]
[1768625596571,5.5910076,144.38,144.34,0.04770525]
[1768625598468,3.86861644,144.41,144.35,3.76095607]
[1768625598675,1.72239116,144.4,144.35,3.76095607]
[1768625599572,1.72239116,144.4,144.36,0.04885641]
[1768625599775,1.72239116,144.4,144.36,6.28595641]
[1768625601178,9.116e-05,144.4,144.36,6.28595641]
[1768625602373,3.86861644,144.41,144.36,6.28595641]
[1768625602578,3.86861644,144.41,144.37,6.2367]
[1768625603266,150.23573034,144.42,144.37,9.76101584]
[1768625603470,154.02890961,144.42,144.37,9.76101584]
[1768625604279,154.02890961,144.42,144.37,6.2367]
[1768625605475,155.74934621,144.42,144.37,6.2367]
[1768625609880,3.79317927,144.41,144.37,6.2367]
[1768625611880,3.79317927,144.41,144.36,0.04885641]
[1768625629785,5.51361587,144.41,144.36,0.04885641]
[1768625630096,3.51811313,144.4,144.36,0.04885641]
[1768625642109,1.7204366,144.39,144.36,0.04885641]
[1768625642414,3.77194504,144.38,144.33,16.52123178]
[1768625642803,3.77194504,144.38,144.34,6.2379]
[1768625643010,3.77194504,144.38,144.33,12.93894922]
[1768625643313,5.49238164,144.37,144.31,16.36096485]
[1768625643814,5.54245919,144.37,144.31,16.36096485]
[1768625644817,5.54245919,144.37,144.31,22.60006485]
[1768625649221,5.54245919,144.37,144.31,9.66111563]
[1768625652926,5.54245919,144.37,144.32,6.2388]
[1768625665333,3.82202259,144.37,144.32,6.2388]
[1768625686159,3.82202259,144.37,144.32,19.17774922]
[1768625687469,3.82202259,144.37,144.32,22.66151115]
[1768625695984,0.05007755,144.37,144.33,3.51564191]
[1768625700885,0.05007755,144.37,144.33,9.75404191]
[1768625704880,0.05007755,144.37,144.33,3.51564191]
[1768625707991,9.85686485,144.43,144.34,3.51564191]
[1768625708182,1.72131359,144.42,144.34,3.5615462]
[1768625708684,1.72131359,144.42,144.34,3.51564191]
[1768625708985,1.72131359,144.42,144.35,3.51564191]
[1768625709492,1.72131359,144.42,144.37,0.04544846]
[1768625709790,7.95601359,144.42,144.37,0.04544846]
[1768625712488,11.57837844,144.42,144.37,0.04544846]
[1768625716586,9.85706485,144.42,144.37,0.04544846]
[1768625724602,11.57837844,144.42,144.37,0.04544846]
[1768625725402,11.57752115,144.42,144.37,0.04544846]
[1768625731105,9.76620468,144.44,144.37,3.6740409]
[1768625731309,11.48666098,144.44,144.37,3.6740409]
[1768625731705,11.48666098,144.44,144.37,3.62859244]
[1768625732009,11.48666098,144.44,144.39,0.04576124]
[1768625732210,6.2342,144.43,144.39,0.04576124]
[1768625732402,7.9546563,144.43,144.39,0.04576124]
[1768625733212,6.2342,144.43,144.39,0.04576124]
[1768625733407,7.9546563,144.43,144.39,0.04576124]
[1768625735006,1.7204563,144.43,144.39,0.04576124]
[1768625736616,5.25256098,144.43,144.39,0.04576124]
[1768625738713,3.53210468,144.43,144.39,0.04576124]
[1768625738913,5.25256098,144.43,144.39,0.04576124]
[1768625741016,6.2335,144.45,144.39,0.04576124]
[1768625741222,7.9539563,144.45,144.39,0.04576124]
[1768625743021,2.73117458,144.44,144.39,0.04576124]
[1768625747828,4.45163088,144.44,144.39,0.04576124]
[1768625756221,2.73117458,144.44,144.39,0.04576124]
[1768625756622,4.45163088,144.44,144.39,0.04576124]
[1768625757248,4.45163088,144.44,144.39,6.28156124]
[1768625757738,2.73117458,144.44,144.39,6.28156124]
[1768625757936,4.45163088,144.44,144.39,6.28156124]
[1768625758236,4.45163088,144.44,144.39,0.04576124]
[1768625759836,2.73117458,144.44,144.39,0.04576124]
[1768625760135,4.45163088,144.44,144.39,0.04576124]
[1768625779944,2.73117458,144.44,144.39,0.04576124]
[1768625787849,2.73117458,144.44,144.39,3.71278115]
[1768625788053,1.71970578,144.45,144.39,3.71278115]
[1768625788253,4.67942014,144.45,144.39,3.71278115]
[1768625788456,2.95971436,144.44,144.39,3.71278115]
[1768625791963,2.95971436,144.44,144.39,9.94858115]
[1768625793662,10.93388418,144.46,144.39,9.94858115]
[1768625794962,2.98467065,144.45,144.39,9.94858115]
[1768625812373,2.98467065,144.45,144.4,3.78815824]
[1768625813180,2.98467065,144.45,144.4,10.02355824]
[1768625814682,4.76656446,144.46,144.41,6.235]
[1768625815589,4.76656446,144.46,144.42,0.04734525]
[1768625824990,4.76656446,144.46,144.42,6.28194525]
[1768625829497,1.71970578,144.46,144.42,6.28194525]
[1768625837802,155.5348402,144.48,144.42,10.07010349]
[1768625837998,1.71970578,144.47,144.43,10.02225824]
[1768625847310,1.71917156,144.47,144.43,10.02225824]
[1768625852416,1.71917156,144.47,144.43,3.78815824]
[1768625859317,3.14129707,144.5,144.44,3.74620933]
[1768625859513,1.71917156,144.47,144.44,3.74620933]
[1768625860205,1.71917156,144.47,144.44,3.79863839]
[1768625861317,9.37249707,144.5,144.44,3.79863839]
[1768625861518,1.71917156,144.47,144.44,3.79863839]
[1768625863408,3.14729967,144.49,144.44,3.79863839]
[1768625863613,1.71917156,144.47,144.44,3.79863839]
[1768625876930,3.14729967,144.49,144.44,3.79863839]
[1768625877121,1.71917156,144.47,144.44,3.79863839]
[1768625877620,4.86647123,144.49,144.44,3.79863839]
[1768625877820,4.9177999,144.48,144.44,3.79863839]
[1768625878038,4.86647123,144.49,144.44,3.79863839]
[1768625878725,4.86647123,144.49,144.44,10.03223839]
[1768625879525,3.14729967,144.49,144.44,10.03223839]
[1768625879730,4.86647123,144.49,144.44,10.03223839]
[1768625879930,3.14729967,144.49,144.44,10.03223839]
[1768625880228,4.86647123,144.49,144.44,10.03223839]
[1768625884433,3.14729967,144.49,144.44,10.03223839]
[1768625884733,1.71917156,144.48,144.44,10.03223839]
[1768625887036,4.86647123,144.49,144.44,10.03223839]
[1768625890044,1.71917156,144.47,144.44,3.79863839]
[1768625890543,1.77162294,144.47,144.4,109.93134922]
[1768625891941,1.77162294,144.47,144.43,6.2341]
[1768625892840,0.05245138,144.47,144.43,6.2341]
[1768625894042,0.05245138,144.47,144.43,9.90514322]
[1768625917353,3.14729967,144.49,144.43,9.90514322]
[1768625917745,3.14729967,144.49,144.44,0.0459599]
[1768625927071,9.37909967,144.49,144.44,0.0459599]
[1768625927263,3.61700893,144.46,144.39,3.845311]
[1768625927460,3.61700893,144.45,144.39,3.845311]
[1768625929965,0.04574225,144.43,144.39,3.845311]
[1768625961211,0.04574225,144.43,144.35,109.96544922]
[1768625961212,3.82394142,144.41,144.35,3.7099564]
[1768625961404,1.71876813,144.4,144.35,3.7099564]
[1768625963109,0.04451462,144.39,144.35,3.7099564]
[1768625963405,1.71876813,144.38,144.35,3.7099564]
[1768625964109,1.71876813,144.38,144.33,3.86956915]
[1768625964313,1.71876813,144.35,144.31,3.86956915]
[1768625965110,0.04867666,144.34,144.31,3.86956915]
[1768625965520,0.04867666,144.34,144.29,3.86956915]
[1768625991438,3.77759864,144.34,144.28,10.15828751]
[1768625991738,3.77759864,144.34,144.29,3.91778751]
[1768625992031,0.04867666,144.34,144.29,3.91778751]
[1768625996838,0.04867666,144.34,144.29,10.15788751]
[1768625997241,0.04867666,144.34,144.3,3.91778751]
[1768625998543,1.72231555,144.39,144.31,3.96557396]
[1768625999842,7.95821555,144.39,144.32,3.91778751]
[1768626000743,7.95821555,144.39,144.34,3.96527364]
[1768626002440,6.2354,144.41,144.34,3.96527364]
[1768626002642,1.72231555,144.4,144.34,3.96527364]
[1768626003832,1.72231555,144.4,144.34,10.20327364]
[1768626005243,5.02505914,144.39,144.34,10.20327364]
[1768626005441,1.72231555,144.4,144.34,10.20327364]
[1768626005644,5.02505914,144.39,144.34,10.20327364]
[1768626005844,1.72231555,144.4,144.34,10.20327364]
[1768626006945,5.02930576,144.39,144.34,10.20327364]
[1768626007146,1.72231555,144.4,144.34,10.20327364]
[1768626007345,5.03120775,144.39,144.34,10.20327364]
[1768626007538,1.72231555,144.4,144.34,10.20327364]
[1768626007733,5.03121112,144.39,144.34,10.20327364]
[1768626007939,1.72231555,144.4,144.34,10.20327364]
[1768626009443,1.72231555,144.4,144.34,3.96527364]
[1768626017854,9.96432198,144.41,144.34,3.96527364]
[1768626019848,9.96432198,144.41,144.35,3.91778751]
[1768626020351,3.72892198,144.41,144.35,3.91778751]
[1768626024057,9.79879408,144.43,144.36,3.43016854]
[1768626024256,1.72231555,144.42,144.36,3.43016854]
[1768626024759,5.28660963,144.42,144.36,3.43016854]
[1768626024954,5.28660963,144.42,144.38,0.05045981]
[1768626033362,11.51952707,144.42,144.36,3.43016854]
[1768626033562,1.72063299,144.4,144.33,3.5549266]
[1768626033758,5.22318571,144.38,144.29,3.5549266]
[1768626034765,3.50255272,144.37,144.31,3.5549266]
[1768626034965,0.04622604,144.35,144.31,3.5549266]
[1768626039880,0.04622604,144.35,144.28,157.11305115]
[1768626039881,6.2366,144.38,144.33,3.5549266]
[1768626044676,9.73945272,144.37,144.32,0.05157702]
[1768626044881,11.46008571,144.37,144.32,0.05157702]
[1768626047089,9.73945272,144.37,144.32,0.05157702]
[1768626047288,11.46008571,144.37,144.32,0.05157702]
[1768626051685,3.61927875,144.36,144.32,0.05157702]
[1768626059899,3.61927875,144.36,144.29,3.28589516]
[1768626060102,3.66616345,144.35,144.29,3.28589516]
[1768626060302,3.61927875,144.34,144.29,3.28589516]
[1768626061802,9.85757875,144.34,144.29,3.28589516]
[1768626062298,0.0468847,144.35,144.29,3.28589516]
[1768626067511,9.90386345,144.35,144.29,3.28589516]
[1768626067808,11.62449644,144.35,144.29,3.28589516]
[1768626068808,3.61927875,144.34,144.29,3.28589516]
[1768626069618,5.33991174,144.33,144.27,265.24589516]
[1768626070810,0.05021884,144.31,144.27,265.24589516]
[1768626071613,0.05021884,144.31,144.27,3.28589516]
[1768626075006,0.05021884,144.31,144.25,3.28589516]
[1768626089126,0.05021884,144.31,144.25,9.52779516]
[1768626090427,0.05021884,144.31,144.26,3.19718411]
[1768626092026,0.05021884,144.31,144.24,3.41857718]
[1768626092027,3.21663049,144.31,144.24,3.41857718]
[1768626092331,4.93726348,144.31,144.24,3.41857718]
[1768626093436,3.21663049,144.31,144.24,3.41857718]
[1768626093834,9.45633049,144.31,144.25,3.41857718]
[1768626098741,6.2398,144.3,144.25,3.41857718]
[1768626098928,3.16641165,144.29,144.22,3.41857718]
[1768626099735,3.16641165,144.27,144.22,3.41857718]
[1768626100034,3.21674401,144.27,144.22,3.41857718]
[1768626100637,6.2415,144.26,144.22,3.41857718]
[1768626103038,3.21674401,144.27,144.22,3.41857718]
[1768626106748,9.45784401,144.27,144.2,9.66247718]
[1768626107137,3.21674401,144.27,144.22,3.41857718]
[1768626112054,0.05033236,144.27,144.22,3.41857718]
[1768626114056,6.29153236,144.27,144.22,3.41857718]
[1768626117459,6.2415,144.26,144.22,3.41857718]
[1768626120156,6.242,144.25,144.22,3.41857718]
[1768626120460,3.40855977,144.26,144.2,3.42698255]
[1768626120655,3.40855977,144.25,144.2,3.42698255]
[1768626121350,0.0448705,144.24,144.2,3.42698255]
[1768626121954,6.2428,144.23,144.2,3.42698255]
[1768626122758,0.0448705,144.24,144.2,3.42698255]
[1768626123358,0.0448705,144.24,144.2,265.58698255]
[1768626123859,3.45343027,144.24,144.18,3.42698255]
[1768626125759,6.2433,144.22,144.18,3.42698255]
[1768626126854,6.2875705,144.24,144.18,3.42698255]
[1768626127764,0.0448705,144.24,144.18,3.42698255]
[1768626128059,0.0448705,144.24,144.19,3.42698255]
[1768626136366,6.2872705,144.24,144.19,3.42698255]
[1768626136569,0.0448705,144.24,144.19,3.42698255]
[1768626136768,0.0448705,144.24,144.2,262.18]
[1768626136967,6.2429,144.23,144.2,262.18]
[1768626137373,6.2429,144.23,144.2,265.60698255]
[1768626137972,0.0448705,144.24,144.2,265.60698255]
[1768626145477,0.0448705,144.24,144.21,3.35945049]
[1768626154586,0.0448705,144.24,144.21,265.55945049]
[1768626157296,6.2423,144.25,144.22,3.32831906]
[1768626160593,6.2423,144.25,144.21,262.24773887]
[1768626162992,3.08414755,144.26,144.21,262.24773887]
[1768626163891,9.32574755,144.26,144.21,0.04773887]
[1768626164197,1.72415091,144.25,144.22,262.2]
[1768626164697,1.72415091,144.25,144.21,0.04773887]
[1768626164900,7.96635091,144.25,144.21,0.04773887]
[1768626173399,6.2422,144.25,144.21,0.04773887]
[1768626173603,3.08414755,144.26,144.21,0.04773887]
[1768626174206,9.32564755,144.26,144.21,0.04773887]
[1768626174700,9.32564755,144.26,144.21,3.33283316]
[1768626179106,6.2415,144.26,144.21,3.33283316]
[1768626181307,9.48616117,144.26,144.21,3.33283316]
[1768626185506,3.24466117,144.25,144.21,0.04773887]
[1768626202626,3.09793983,144.24,144.18,262.2]
[1768626202827,3.14234504,144.24,144.18,262.2]
[1768626205423,3.09793983,144.23,144.18,262.2]
[1768626207930,3.09793983,144.23,144.17,6.2451]
[1768626208125,3.09793983,144.23,144.18,262.2]
[1768626209626,3.09793983,144.23,144.17,9.59297501]
[1768626209833,3.09793983,144.23,144.18,262.2]
[1768626214435,3.09793983,144.23,144.18,265.42450937]
[1768626215131,3.09793983,144.23,144.18,262.22]
[1768626215526,3.09793983,144.23,144.17,3.22450937]
[1768626215527,3.03987309,144.22,144.14,16.16345859]
[1768626215730,3.03987309,144.21,144.15,262.22]
[1768626216434,0.04385175,144.19,144.15,262.22]
[1768626221938,0.04385175,144.19,144.14,3.22450937]
[1768626222137,0.04385175,144.19,144.15,262.24]
[1768626222639,0.04385175,144.19,144.14,3.22450937]
[1768626222832,0.04385175,144.19,144.15,262.24]
[1768626223635,0.04385175,144.19,144.14,3.22450937]
[1768626223840,0.04385175,144.19,144.16,262.24]
[1768626226337,0.04385175,144.19,144.16,265.46450937]
[1768626226540,9.28357309,144.21,144.16,265.46450937]
[1768626226848,3.03987309,144.21,144.16,265.46450937]
[1768626227841,6.2434,144.22,144.16,265.46450937]
[1768626228444,6.2434,144.22,144.18,0.04702879]
[1768626232042,6.2434,144.22,144.18,3.31648004]
[1768626255164,6.2434,144.22,144.18,0.04702879]
[1768626255360,9.37282942,144.22,144.18,0.04702879]
[1768626271492,6.2437,144.21,144.18,0.04702879]
[1768626275392,9.43908326,144.21,144.15,262.26]
[1768626275694,9.48823628,144.21,144.15,262.26]
[1768626275897,9.48823628,144.21,144.15,265.33193336]
[1768626276198,3.19538326,144.2,144.15,265.33193336]
[1768626282601,3.19538326,144.2,144.16,262.26]
[1768626284500,0.04915302,144.21,144.16,262.26]
[1768626284706,0.04915302,144.21,144.16,265.33193336]
[1768626284905,0.04915302,144.21,144.16,271.57763336]
[1768626287107,0.04915302,144.21,144.17,3.07193336]
[1768626291513,0.04915302,144.21,144.17,265.33193336]
[1768626305720,1.72515859,144.24,144.18,3.17548498]
[1768626305721,6.2427,144.24,144.18,3.17548498]
[1768626306027,6.2427,144.24,144.19,3.17548498]
[1768626306324,6.2427,144.24,144.2,265.43548498]
[1768626309226,6.2419,144.26,144.21,3.17548498]
[1768626310123,6.2419,144.26,144.22,0.04913224]
[1768626313328,6.242,144.25,144.22,0.04913224]
[1768626329030,6.242,144.25,144.2,262.22]
[1768626329338,6.28874311,144.25,144.2,262.22]
[1768626330931,6.28874311,144.25,144.19,265.40129873]
[1768626331232,9.37868717,144.25,144.19,265.40129873]
[1768626331434,9.37868717,144.25,144.2,3.10998933]
[1768626332133,3.13668717,144.25,144.2,3.10998933]
[1768626332730,0.04674311,144.25,144.2,3.10998933]
[1768626334633,0.04674311,144.25,144.2,265.32998933]
[1768626334829,0.04674311,144.25,144.21,3.10998933]
[1768626339948,3.08994406,144.24,144.18,3.10998933]
[1768626340151,0.04674311,144.25,144.2,3.10998933]
[1768626340651,4.8141748,144.26,144.2,3.10998933]
[1768626341055,0.04746325,144.24,144.2,3.10998933]
[1768626343254,99.55109303,144.27,144.2,3.10998933]
[1768626343447,99.55109303,144.27,144.22,3.10998933]
[1768626344255,3.08994406,144.28,144.22,3.10998933]
[1768626362869,9.33064406,144.28,144.22,3.10998933]
[1768626364763,3.16314099,144.27,144.22,3.10998933]
[1768626367169,9.40424099,144.27,144.22,3.10998933]
[1768626367870,9.40364099,144.29,144.22,3.10998933]
[1768626368770,9.40364099,144.29,144.24,0.04960666]
[1768626382983,3.0440786,144.28,144.24,0.04960666]
[1768626420506,11.0082151,144.28,144.24,0.04960666]
[1768626420708,3.29618973,144.27,144.21,265.46030839]
[1768626421003,3.34740841,144.27,144.21,265.46030839]
[1768626424407,3.34740841,144.27,144.21,3.30030839]
[1768626424598,3.34740841,144.27,144.21,265.46030839]
[1768626425809,9.58850841,144.27,144.21,3.30030839]
[1768626426004,9.58850841,144.27,144.21,265.46030839]
[1768626426310,3.29618973,144.26,144.21,265.46030839]
[1768626426607,3.29618973,144.26,144.2,268.404]
[1768626427308,3.29618973,144.26,144.2,6.244]
[1768626427501,3.29618973,144.26,144.2,268.404]
[1768626428508,3.29618973,144.26,144.2,6.244]
[1768626428709,3.29618973,144.26,144.2,271.47136753]
[1768626429013,3.29618973,144.26,144.2,9.31136753]
[1768626429308,3.29618973,144.26,144.2,271.47136753]
[1768626430908,5.01962623,144.26,144.2,9.31136753]
[1768626431106,3.29618973,144.25,144.2,9.31136753]
[1768626431911,3.29618973,144.25,144.2,3.06736753]
[1768626432213,3.29618973,144.25,144.19,265.22736753]
[1768626432214,0.04609449,144.24,144.19,265.22736753]
[1768626434315,0.04609449,144.24,144.19,3.06736753]
[1768626434515,0.04609449,144.24,144.19,265.24736753]
[1768626441819,0.04609449,144.24,144.2,3.08118701]
[1768626444822,0.04609449,144.24,144.21,3.08118701]
[1768626452730,0.04609449,144.24,144.21,265.28118701]
[1768626462640,0.04609449,144.24,144.22,262.2]
[1768626465142,0.04609449,144.24,144.2,3.06349075]
[1768626465342,0.04609449,144.24,144.21,262.2]
[1768626465544,0.04609449,144.24,144.2,3.06349075]
[1768626465742,0.04609449,144.24,144.21,262.2]
[1768626473850,0.04609449,144.24,144.21,265.49064288]
[1768626502161,0.04609449,144.24,144.21,3.29064288]
[1768626502362,0.04609449,144.24,144.21,265.49064288]
[1768626504664,0.04609449,144.24,144.17,7.96934564]
[1768626504864,0.04609449,144.24,144.18,262.2]
[1768626506668,0.04609449,144.24,144.19,3.01346644]
[1768626519570,0.04609449,144.24,144.2,262.22]
[1768626520266,0.04609449,144.24,144.2,265.49286978]
[1768626525172,0.04609449,144.24,144.2,3.27286978]
[1768626525472,0.04609449,144.24,144.2,265.49286978]
[1768626530960,6.28859449,144.24,144.19,262.22]
[1768626531368,6.28859449,144.24,144.19,265.49286978]
[1768626536274,6.2429,144.23,144.19,3.27286978]
[1768626536576,6.2429,144.23,144.19,262.22]
[1768626537775,6.2429,144.23,144.18,262.22]
[1768626538171,6.2429,144.23,144.16,141.87184427]
[1768626538172,3.25731243,144.24,144.16,141.87184427]
[1768626538476,3.21121794,144.23,144.17,262.22]
[1768626538678,0.05218556,144.21,144.17,262.93736466]
[1768626539878,6.29588556,144.21,144.17,262.93736466]
[1768626542583,6.29588556,144.21,144.17,0.71736466]
[1768626542779,6.29588556,144.21,144.17,262.95736466]
[1768626544882,6.29588556,144.21,144.17,0.71736466]
[1768626545087,6.29588556,144.21,144.17,262.95736466]
[1768626549587,6.29588556,144.21,144.15,0.71715807]
[1768626549889,6.29588556,144.21,144.16,248.5]
[1768626550186,6.29588556,144.21,144.16,249.21715807]
[1768626551385,6.2442,144.2,144.14,262.26]
[1768626553486,6.2442,144.2,144.12,1.72428333]
[1768626553688,6.2442,144.2,144.13,262.26]
[1768626554185,6.2442,144.2,144.12,1.72428333]
[1768626554387,0.05151283,144.18,144.13,262.28]
[1768626565396,0.05151283,144.18,144.11,7.97208333]
[1768626565597,0.05151283,144.18,144.12,262.3]
[1768626568207,6.29651283,144.18,144.12,262.3]
[1768626571609,6.2454,144.17,144.12,262.3]
[1768626574918,0.05151283,144.18,144.12,262.3]
[1768626575609,6.29651283,144.18,144.12,262.3]
[1768626576412,6.29651283,144.18,144.11,1.72428333]
[1768626576717,6.29651283,144.18,144.12,262.3]
[1768626601333,6.29651283,144.18,144.11,281.50684922]
[1768626603239,6.2455,144.17,144.1,12.93894922]
[1768626603441,6.2455,144.17,144.12,262.32]
[1768626604242,0.05062511,144.16,144.12,262.32]
[1768626613954,6.29652511,144.16,144.09,19.18744922]
[1768626614250,6.29652511,144.16,144.1,262.34]
[1768626618552,6.29652511,144.16,144.09,6.2485]
[1768626618754,6.29652511,144.16,144.1,262.34]
[1768626623365,6.2463,144.15,144.1,262.34]
[1768626623756,6.2463,144.15,144.1,262.36]
[1768626624962,6.2467,144.14,144.09,262.36]
[1768626625958,0.05046986,144.13,144.09,262.36]
[1768626630165,0.05046986,144.13,144.06,12.93894922]
[1768626630166,6.29776986,144.13,144.06,12.93894922]
[1768626630370,6.29776986,144.13,144.07,262.36]
[1768626633769,6.29776986,144.13,144.08,262.38]
[1768626634074,6.29776986,144.13,144.09,262.38]
[1768626637177,6.29776986,144.13,144.06,151.32269542]
[1768626637378,6.29776986,144.13,144.07,262.38]
[1768626638374,6.29776986,144.13,144.06,151.32269542]
[1768626638584,6.29776986,144.13,144.08,262.38]
[1768626640176,6.2476,144.12,144.08,262.38]
[1768626642079,6.2481,144.11,144.08,262.38]
[1768626644273,6.29796986,144.13,144.08,262.38]
[1768626644883,6.2476,144.12,144.08,262.38]
[1768626652401,0.05046986,144.13,144.08,262.38]
[1768626663995,0.05046986,144.13,144.08,268.6291]
[1768626664296,0.05046986,144.13,144.08,262.38]
[1768626664494,0.05046986,144.13,144.08,264.10718899]
[1768626665998,0.05046986,144.13,144.09,6.2488]
[1768626672201,11.21110907,144.16,144.09,6.2488]
[1768626672503,11.21110907,144.16,144.1,0.05179781]
[1768626672801,11.21110907,144.16,144.11,262.4]
[1768626673206,9.48392008,144.16,144.11,262.4]
[1768626675105,1.72718899,144.18,144.11,262.4]
[1768626675106,11.21010907,144.18,144.11,262.4]
[1768626676007,11.21010907,144.18,144.13,0.045669]
[1768626678205,9.48292008,144.18,144.13,0.045669]
[1768626690014,3.23772008,144.18,144.13,0.045669]
[1768626712425,9.48272008,144.18,144.13,0.045669]
[1768626713830,3.20076036,144.17,144.13,0.045669]
[1768626727647,3.20076036,144.17,144.11,6.2478]
[1768626727848,3.20076036,144.15,144.11,268.5878]
[1768626732748,6.036e-05,144.15,144.11,268.5878]
[1768626736552,0.04920423,144.16,144.11,268.5878]
[1768626742753,0.04920423,144.16,144.12,262.36]
[1768626744256,3.20185997,144.21,144.14,3.10858913]
[1768626744460,3.20185997,144.21,144.15,265.46858913]
[1768626745849,3.20185997,144.21,144.17,0.05111016]
[1768626746251,3.20185997,144.23,144.17,3.15969929]
[1768626757171,3.20185997,144.23,144.17,0.05111016]
[1768626757367,3.1388657,144.22,144.17,0.05111016]
[1768626758367,3.1388657,144.21,144.17,0.05111016]
[1768626762664,3.1388657,144.21,144.14,271.77539332]
[1768626762865,0.04404211,144.2,144.14,271.77539332]
[1768626773179,0.04404211,144.2,144.15,3.24913466]
[1768626780482,0.04404211,144.2,144.15,9.49533466]
[1768626780683,0.04404211,144.2,144.16,3.24912574]
[1768626781885,6.2432,144.23,144.16,3.24912574]
[1768626782080,6.2432,144.23,144.18,3.24912468]
[1768626783485,6.2432,144.22,144.18,3.24912468]
[1768626784385,6.2432,144.22,144.19,0.04988826]
[1768626787584,3.17550538,144.22,144.19,0.04988826]
[1768626787786,1.72516448,144.24,144.16,3.24911859]
[1768626787787,9.41920538,144.21,144.16,3.24911859]
[1768626795596,6.2437,144.21,144.16,3.24911859]
[1768626797293,0.04661265,144.22,144.16,3.24911859]
[1768626797495,0.04661265,144.22,144.16,9.49491859]
[1768626797892,0.04661265,144.22,144.17,3.24910932]
[1768626812716,0.04661265,144.22,144.17,9.49450932]
[1768626814615,0.04661265,144.22,144.18,3.13015555]
[1768626826926,0.04661265,144.22,144.18,9.37495555]
[1768626830321,1.72476547,144.25,144.2,3.13015555]
[1768626831929,1.72476547,144.25,144.2,9.37395555]
[1768626841939,1.72476547,144.25,144.2,3.13015555]
[1768626845435,4.77356169,144.26,144.2,3.13015555]
[1768626845632,3.04879622,144.26,144.2,3.13015555]
[1768626845833,4.77356169,144.26,144.2,3.13015555]
[1768626851544,6.2411,144.27,144.2,3.13015555]
[1768626851848,11.01466169,144.27,144.21,3.06013055]
[1768626856349,3.04879622,144.23,144.17,3.06013055]
[1768626858058,3.04879622,144.23,144.19,0.04504616]
[1768626866356,3.04879622,144.23,144.14,14.66371469]
[1768626866357,3.18666957,144.18,144.1,3.19755208]
[1768626867564,0.04390701,144.15,144.1,3.19755208]
[1768626867764,0.04390701,144.15,144.1,9.44575208]
[1768626867964,0.04390701,144.15,144.11,3.19755208]
[1768626869166,3.18666957,144.18,144.11,3.19755208]
[1768626869366,3.18666957,144.18,144.12,0.04533126]
[1768626871267,3.18666957,144.18,144.12,3.11899509]
[1768626879071,3.18824576,144.2,144.13,3.07366383]
[1768626880872,3.18824576,144.2,144.14,3.07366383]
[1768626882566,3.18824576,144.18,144.12,3.07366383]
[1768626883164,3.18824576,144.18,144.14,0.0448353]
[1768626894083,3.27639588,144.16,144.1,3.27053129]
[1768626909701,9.52229588,144.16,144.1,3.27053129]
[1768626921505,9.48961735,144.15,144.1,3.27053129]
[1768626921710,9.48961735,144.15,144.09,361.95408366]
[1768626922312,0.04551527,144.13,144.09,361.95408366]
[1768626923313,0.04551527,144.13,144.09,99.59408366]
[1768626923614,0.04551527,144.13,144.09,361.95408366]
[1768626923810,0.04551527,144.13,144.09,365.25344553]
[1768626924112,0.04551527,144.13,144.09,102.89344553]
[1768626924314,0.04551527,144.13,144.09,365.25344553]
[1768626933422,3.24331735,144.14,144.09,365.25344553]
[1768626933812,3.24331735,144.14,144.1,0.04480483]
[1768626939919,9.49001735,144.14,144.1,0.04480483]
[1768626940114,3.15666693,144.13,144.07,12.93894922]
[1768626940320,3.20560404,144.13,144.08,262.36]
[1768626941819,6.2476,144.12,144.08,262.36]
[1768626946218,9.40426693,144.12,144.08,262.36]
[1768626947520,6.2476,144.12,144.08,262.36]
[1768626954628,6.2476,144.12,144.08,265.35872881]
[1768626959235,9.48389353,144.12,144.06,2.99872881]
[1768626959534,3.23629353,144.11,144.06,262.4]
[1768626959921,6.2484,144.1,144.06,262.4]
[1768626960126,6.29271429,144.1,144.06,262.4]
[1768626960326,5.00789347,144.1,144.01,14.14680025]
[1768626960529,5.00789347,144.1,144.02,262.4]
[1768626960728,5.00789347,144.1,144.03,262.4]
[1768626960925,4.96357918,144.1,144.03,262.4]
[1768626961333,3.23629353,144.06,143.96,262.4]
[1768626961538,3.23629353,144.06,143.98,0.33930578]
[1768626962238,0.04662173,144.03,143.98,0.33930578]
[1768626962838,6.2499,144.07,144.0,0.33930566]
[1768626963138,6.2499,144.07,144.01,262.75930566]
[1768626963530,6.2503,144.06,144.01,262.75930566]